bitfinex-derivatives/quotes_SOLF0:USTF0_20250830
["timestamp","ask_amount","ask_price","bid_price","bid_amount"]
[1756543297145,7.67,204.84,204.81,15.01975789]
[1756543297637,7.63,204.92,204.83,4.3934]
[1756543298239,7.63,204.92,204.85,0.03534958]
[1756543299748,7.63,204.92,204.85,4.42844958]
[1756543300338,7.63,204.92,204.85,0.03534958]
[1756543300549,7.63,204.93,204.87,7.21845789]
[1756543300746,7.63,204.93,204.85,0.03534958]
[1756543300948,7.63,204.93,204.84,2.82585789]
[1756543301342,7.63,204.93,204.87,0.03418452]
[1756543302043,10.45585789,204.93,204.87,0.03418452]
[1756543303644,7.63,204.93,204.87,0.03418452]
[1756543304644,7.63,204.93,204.87,4.42678452]
[1756543304943,10.45585789,204.93,204.87,0.03418452]
[1756543307254,7.63,204.93,204.87,0.03418452]
[1756543308053,2.82585789,204.91,204.87,0.03418452]
[1756543308349,7.63,204.9,204.87,0.03418452]
[1756543309348,2.82585789,204.91,204.87,0.03418452]
[1756543310053,7.63,204.9,204.87,0.03418452]
[1756543310455,2.82585789,204.91,204.87,0.03418452]
[1756543311054,7.63,204.9,204.87,0.03418452]
[1756543311255,2.82585789,204.91,204.87,0.03418452]
[1756543311557,2.82585789,204.92,204.87,0.03418452]
[1756543311756,7.63,204.91,204.87,0.03418452]
[1756543312859,2.82585789,204.92,204.87,0.03418452]
[1756543313059,7.63,204.91,204.87,0.03418452]
[1756543313258,2.82585789,204.92,204.87,0.03418452]
[1756543313458,7.63,204.91,204.87,0.03418452]
[1756543318462,2.82585789,204.92,204.87,0.03418452]
[1756543318666,7.63,204.91,204.87,0.03418452]
[1756543322172,2.82585789,204.92,204.87,0.03418452]
[1756543322469,7.63,204.91,204.87,0.03418452]
[1756543324173,7.63,204.88,204.87,0.03418452]
[1756543326363,2.82585789,204.92,204.87,0.03418452]
[1756543326567,7.63,204.91,204.88,7.67]
[1756543326967,34.9,204.93,204.84,4.3933]
[1756543327171,34.9,204.93,204.87,0.03590564]
[1756543327775,10.44585789,204.97,204.88,7.52]
[1756543327968,10.44585789,204.97,204.88,10.34585789]
[1756543328165,7.62,204.97,204.88,7.21825789]
[1756543328464,7.62,204.97,204.9,0.03554212]
[1756543330771,7.62,205.02,204.92,7.52]
[1756543330974,7.62,204.98,204.9,0.03554212]
[1756543331273,7.62,204.98,204.88,10.34585789]
[1756543331478,7.62,204.98,204.92,0.03177141]
[1756543341488,2.82585789,204.99,204.92,7.55177141]
[1756543344386,10.44585789,204.99,204.92,7.55177141]
[1756543347887,10.44585789,204.99,204.93,4.3913]
[1756543348389,328.14,205.06,204.96,7.52]
[1756543348390,10.44585789,205.02,204.96,7.52]
[1756543348794,7.62,205.02,204.96,7.52]
[1756543349094,7.62,205.06,204.98,7.52]
[1756543349983,2.82585789,205.0,204.97,0.03613862]
[1756543350388,7.62,204.99,204.91,7.52]
[1756543350587,2.82585789,204.97,204.96,0.03093285]
[1756543350788,10.44585789,204.97,204.96,0.03093285]
[1756543351393,7.62,204.97,204.96,0.03093285]
[1756543352593,7.62,204.97,204.87,7.52]
[1756543352797,7.62,204.91,204.83,7.52]
[1756543353890,0.03720794,204.89,204.83,7.52]
[1756543355793,0.03720794,204.89,204.83,11.9135]
[1756543356003,0.03720794,204.89,204.87,7.52]
[1756543356290,0.03720794,204.89,204.86,7.21865789]
[1756543356492,0.03720794,204.89,204.87,7.52]
[1756543356893,0.03720794,204.89,204.87,7.58]
[1756543357199,0.03720794,204.89,204.86,7.21865789]
[1756543357495,0.03720794,204.89,204.87,7.58]
[1756543357701,0.03720794,204.89,204.86,7.21865789]
[1756543357897,0.03720794,204.89,204.87,7.58]
[1756543358092,0.03720794,204.89,204.86,7.21865789]
[1756543358495,0.03720794,204.89,204.87,7.58]
[1756543359496,0.03720794,204.89,204.86,7.21865789]
[1756543360299,0.03720794,204.89,204.87,7.58]
[1756543360491,0.03720794,204.89,204.86,7.21865789]
[1756543360694,7.94e-06,204.89,204.88,11.9725]
[1756543364597,7.94e-06,204.89,204.86,10.44110307]
[1756543364795,7.71000794,204.89,204.86,7.61524518]
[1756543365190,7.71000794,204.89,204.86,0.03524518]
[1756543365496,7.94e-06,204.89,204.86,0.03524518]
[1756543377903,7.71000794,204.89,204.86,0.03524518]
[1756543378705,7.94e-06,204.89,204.86,0.03524518]
[1756543379105,7.71000794,204.89,204.86,0.03524518]
[1756543379807,7.94e-06,204.89,204.86,0.03524518]
[1756543381008,7.71000794,204.89,204.86,0.03524518]
[1756543381207,7.94e-06,204.89,204.86,0.03524518]
[1756543381804,7.71000794,204.89,204.86,0.03524518]
[1756543382206,7.94e-06,204.89,204.86,0.03524518]
[1756543382601,7.71000794,204.89,204.86,0.03524518]
[1756543382802,7.71000794,204.89,204.86,7.61524518]
[1756543383010,7.94e-06,204.89,204.86,0.03524518]
[1756543384506,7.94e-06,204.89,204.87,7.58]
[1756543384709,7.94e-06,204.89,204.88,2.82585789]
[1756543385801,7.94e-06,204.89,204.87,7.58]
[1756543387411,7.94e-06,204.89,204.86,0.03524518]
[1756543396318,7.94e-06,204.89,204.87,7.65]
[1756543399926,7.94e-06,204.89,204.86,0.03524518]
[1756543432057,7.83,204.97,204.88,4.09684255]
[1756543432345,7.83,205.01,204.92,7.79]
[1756543433451,7.83,205.01,204.94,0.03325752]
[1756543438055,2.46415715,205.0,204.94,0.03325752]
[1756543438255,2.46415715,204.99,204.94,0.03325752]
[1756543438454,2.46415715,204.98,204.94,0.03325752]
[1756543438655,7.83,204.96,204.94,0.03325752]
[1756543438846,2.46415715,204.95,204.94,0.03325752]
[1756543440857,10.29415715,204.95,204.94,0.03325752]
[1756543441756,7.83,204.95,204.94,0.03325752]
[1756543442051,10.29317511,204.95,204.94,0.03325752]
[1756543452469,10.29126403,204.95,204.94,0.03325752]
[1756543453062,10.29139585,204.95,204.94,0.03325752]
[1756543457266,13.11725374,204.95,204.94,0.03325752]
[1756543458067,13.11725374,204.95,204.84,2.82585789]
[1756543458068,19.03516423,204.95,204.82,7.24]
[1756543458268,7.68,204.87,204.79,7.24]
[1756543458469,2.46139585,204.86,204.79,7.24]
[1756543458669,2.46139585,204.85,204.79,7.24]
[1756543458871,2.46139585,204.84,204.78,7.24]
[1756543459162,2.46139585,204.83,204.78,7.24]
[1756543459370,2.46139585,204.82,204.77,8.49164255]
[1756543459568,0.03600342,204.83,204.77,8.49164255]
[1756543459764,2.46065875,204.82,204.77,4.3948]
[1756543459966,0.03600342,204.83,204.77,4.3948]
[1756543459967,0.03600342,204.83,204.78,7.24]
[1756543460162,2.46064217,204.82,204.77,4.3948]
[1756543460363,2.46064217,204.81,204.78,7.24]
[1756543460670,0.03600342,204.83,204.78,0.03222918]
[1756543460870,2.46049126,204.82,204.79,7.24]
[1756543461072,2.46049126,204.81,204.79,7.24]
[1756543461265,0.03600342,204.83,204.78,0.03222918]
[1756543461471,2.45997588,204.82,204.79,7.24]
[1756543461772,0.03600342,204.83,204.78,0.03222918]
[1756543461967,2.45997588,204.82,204.79,7.24]
[1756543462168,0.03600342,204.83,204.79,7.24]
[1756543462470,2.459385,204.82,204.79,7.24]
[1756543462666,2.45928477,204.81,204.78,0.03222918]
[1756543462971,0.03600342,204.83,204.79,7.24]
[1756543463171,7.68,204.81,204.78,0.03222918]
[1756543463372,7.68,204.82,204.78,0.03222918]
[1756543463572,10.13818325,204.81,204.78,7.27222918]
[1756543463773,7.68,204.81,204.78,7.27222918]
[1756543469875,7.68,204.82,204.78,7.27222918]
[1756543470075,0.03600342,204.83,204.78,7.27222918]
[1756543470276,7.68,204.81,204.78,7.27222918]
[1756543470475,0.03600342,204.83,204.78,7.27222918]
[1756543470775,7.68,204.81,204.78,7.27222918]
[1756543472871,0.03600342,204.83,204.78,0.03222918]
[1756543473070,7.68,204.81,204.78,0.03222918]
[1756543473274,7.68,204.82,204.78,0.03222918]
[1756543473474,7.68,204.8,204.78,0.03222918]
[1756543473674,0.03600342,204.83,204.78,0.03222918]
[1756543473871,7.68,204.81,204.78,0.03222918]
[1756543474072,0.03600342,204.83,204.78,0.03222918]
[1756543474275,2.46777391,204.82,204.78,0.03222918]
[1756543474474,7.68,204.82,204.78,0.03222918]
[1756543474975,7.68,204.82,204.79,7.24]
[1756543475575,0.03600342,204.83,204.79,7.24]
[1756543475776,7.68,204.81,204.79,7.24]
[1756543483078,0.03600342,204.83,204.8,1.8131335]
[1756543483379,0.03600342,204.83,204.82,9.5131335]
[1756543483770,0.03600342,204.83,204.82,9.9931335]
[1756543483979,7.57,204.91,204.83,7.7]
[1756543484177,2.47046153,204.9,204.87,9.5131335]
[1756543484373,2.47081288,204.89,204.87,7.7]
[1756543484578,7.57,204.9,204.87,7.7]
[1756543484774,2.47094443,204.89,204.87,7.7]
[1756543484979,7.57,204.9,204.87,7.7]
[1756543487478,2.83040021,204.94,204.86,0.03740222]
[1756543487685,10.04021853,204.93,204.86,0.03740222]
[1756543487879,2.47021853,204.92,204.86,0.03740222]
[1756543488085,2.47021853,204.91,204.86,0.03740222]
[1756543488277,7.57,204.89,204.86,0.03740222]
[1756543488483,7.57,204.87,204.86,0.03740222]
[1756543488680,10.04021853,204.87,204.86,0.03740222]
[1756543494998,10.04113053,204.87,204.86,0.03740222]
[1756543497700,10.52113053,204.87,204.77,7.7]
[1756543497898,7.57,204.84,204.77,7.7]
[1756543498100,2.47113053,204.83,204.77,7.7]
[1756543498300,2.47113053,204.82,204.75,4.09684255]
[1756543498496,2.47113053,204.81,204.75,4.09684255]
[1756543498693,2.47113053,204.8,204.75,4.09684255]
[1756543498898,0.03151368,204.8,204.76,7.7]
[1756543500094,0.03151368,204.8,204.75,4.09684255]
[1756543500299,0.03151368,204.8,204.75,8.49204255]
[1756543500499,0.03151368,204.8,204.76,7.7]
[1756543501202,0.03151368,204.8,204.75,8.49204255]
[1756543501501,2.46372689,204.79,204.76,7.7]
[1756543501700,7.60151368,204.8,204.76,7.7]
[1756543501895,7.57,204.78,204.74,7.7]
[1756543502302,2.46484961,204.77,204.74,7.7]
[1756543502497,7.57,204.78,204.73,59.80004325]
[1756543502703,2.46499366,204.77,204.74,7.7]
[1756543502906,7.57,204.78,204.74,7.7]
[1756543503105,2.46515473,204.77,204.74,7.7]
[1756543503305,7.57,204.78,204.73,59.80004325]
[1756543503504,2.46500171,204.77,204.73,59.80004325]
[1756543503704,7.57,204.78,204.73,59.80004325]
[1756543504006,0.03151368,204.8,204.73,59.80004325]
[1756543504007,0.03151368,204.8,204.76,6.92724276]
[1756543504206,0.03151368,204.8,204.77,7.7]
[1756543504506,0.03151368,204.8,204.76,6.92724276]
[1756543504704,0.03151368,204.8,204.77,7.7]
[1756543505005,0.03151368,204.8,204.78,7.7]
[1756543505608,0.03151368,204.8,204.77,4.3948]
[1756543506101,0.03151368,204.8,204.78,7.7]
[1756543506305,0.03151368,204.8,204.77,4.3948]
[1756543506500,0.03151368,204.8,204.78,7.7]
[1756543506701,0.03151368,204.8,204.77,4.3948]
[1756543507406,0.03151368,204.8,204.78,7.22]
[1756543507606,0.03151368,204.8,204.77,4.3948]
[1756543507807,0.03151368,204.8,204.78,7.22]
[1756543508810,0.03151368,204.8,204.77,4.3948]
[1756543509609,0.03151368,204.8,204.78,7.22]
[1756543509809,0.03151368,204.8,204.77,4.3948]
[1756543510612,0.03151368,204.8,204.78,7.22]
[1756543511112,0.03151368,204.8,204.77,4.3948]
[1756543511514,0.03151368,204.8,204.78,7.22]
[1756543511715,0.03151368,204.8,204.77,8.49164255]
[1756543512110,0.03151368,204.8,204.78,7.22]
[1756543512310,0.03151368,204.8,204.77,8.49164255]
[1756543512816,7.81151368,204.8,204.76,4.09684255]
[1756543513213,0.03151368,204.8,204.76,4.09684255]
[1756543513419,0.03151368,204.8,204.77,7.22]
[1756543513619,0.03151368,204.8,204.76,4.09684255]
[1756543513819,0.03151368,204.8,204.76,8.49174255]
[1756543514023,0.03151368,204.8,204.77,7.22]
[1756543514615,0.03151368,204.8,204.76,8.49174255]
[1756543514820,0.03151368,204.8,204.77,7.22]
[1756543515119,0.03151368,204.8,204.76,8.49174255]
[1756543515316,0.03151368,204.8,204.77,7.22]
[1756543515718,0.03151368,204.8,204.76,8.49174255]
[1756543516017,0.03151368,204.8,204.77,7.22]
[1756543516518,7.78,204.79,204.77,7.22]
[1756543516711,0.03151368,204.8,204.75,6.92724276]
[1756543516914,2.46632144,204.79,204.75,6.92724276]
[1756543517122,7.81151368,204.8,204.76,7.22]
[1756543517419,2.46608191,204.79,204.75,2.83040021]
[1756543517620,7.81151368,204.8,204.75,2.83040021]
[1756543517817,2.46613462,204.79,204.76,7.22]
[1756543518021,7.81151368,204.8,204.75,2.83040021]
[1756543518320,2.46695054,204.79,204.75,2.83040021]
[1756543518518,7.81151368,204.8,204.76,7.22]
[1756543518720,2.4670243,204.79,204.76,7.22]
[1756543518919,7.81151368,204.8,204.76,7.22]
[1756543519225,2.4670243,204.79,204.76,7.22]
[1756543519423,0.03151368,204.8,204.76,7.22]
[1756543519620,2.46739099,204.79,204.75,6.92724276]
[1756543519821,2.46715215,204.78,204.74,4.09684255]
[1756543520021,7.78,204.76,204.72,11.31684255]
[1756543520518,7.81112795,204.76,204.72,11.31684255]
[1756543520914,0.03112795,204.76,204.72,4.09684255]
[1756543521120,10.24620447,204.75,204.7,4.09684255]
[1756543521314,2.46620447,204.74,204.69,4.09684255]
[1756543521520,7.78,204.75,204.69,4.09684255]
[1756543521813,10.24621167,204.74,204.68,4.09684255]
[1756543522008,7.78,204.72,204.68,4.09684255]
[1756543522210,7.78,204.7,204.66,11.31684255]
[1756543522412,0.03112795,204.76,204.66,4.09684255]
[1756543522720,7.78,204.7,204.6,15.71514255]
[1756543522923,7.78,204.68,204.6,15.71514255]
[1756543523115,7.78,204.66,204.61,2.83040021]
[1756543523320,7.78,204.7,204.62,7.22]
[1756543523517,7.78,204.65,204.61,2.83040021]
[1756543523717,0.03471706,204.66,204.61,2.83040021]
[1756543523925,7.78,204.65,204.61,2.83040021]
[1756543524117,0.03471706,204.66,204.6,4.3983]
[1756543524321,7.78,204.65,204.6,4.3983]
[1756543524519,0.03471706,204.66,204.6,4.3983]
[1756543525119,7.78,204.65,204.6,4.3983]
[1756543525319,0.03471706,204.66,204.6,4.3983]
[1756543525720,7.78,204.65,204.6,4.3983]
[1756543525923,0.03471706,204.66,204.6,4.3983]
[1756543526620,7.78,204.65,204.6,4.3983]
[1756543526926,0.03471706,204.66,204.6,4.3983]
[1756543527520,7.78,204.65,204.6,4.3983]
[1756543527920,0.03471706,204.66,204.6,4.3983]
[1756543528719,7.78,204.65,204.6,4.3983]
[1756543529222,0.03471706,204.66,204.6,4.3983]
[1756543530325,7.78,204.65,204.6,4.3983]
[1756543530527,0.03471706,204.66,204.6,4.3983]
[1756543530728,7.81471706,204.66,204.6,4.3983]
[1756543531719,0.03471706,204.66,204.62,4.398]
[1756543532223,0.03471706,204.66,204.63,7.22]
[1756543532729,7.81471706,204.66,204.63,7.22]
[1756543533032,7.81471706,204.66,204.62,4.398]
[1756543533229,7.81471706,204.66,204.63,7.22]
[1756543534032,7.81471706,204.66,204.62,4.398]
[1756543534227,7.81471706,204.66,204.63,7.22]
[1756543534425,0.03471706,204.66,204.63,7.22]
[1756543535131,0.03471706,204.66,204.62,4.398]
[1756543535326,0.03471706,204.66,204.59,4.3985]
[1756543535531,0.03471706,204.66,204.6,7.22]
[1756543536225,7.78,204.65,204.6,7.22]
[1756543536431,0.03471706,204.66,204.6,7.22]
[1756543536631,7.78,204.65,204.6,7.22]
[1756543536931,7.81471706,204.66,204.6,7.22]
[1756543544735,7.81471706,204.66,204.61,4.3982]
[1756543545436,0.03471706,204.66,204.61,4.3982]
[1756543545637,0.03471706,204.66,204.61,11.7082]
[1756543545939,2.44803038,204.65,204.53,2.83040021]
[1756543546127,7.24,204.64,204.54,7.31]
[1756543546731,0.03517801,204.61,204.55,4.3993]
[1756543547334,7.27517801,204.61,204.55,4.3993]
[1756543549034,7.27517801,204.61,204.54,7.31]
[1756543550437,0.03517801,204.61,204.5,7.31]
[1756543550631,7.24,204.6,204.51,2.83040021]
[1756543551240,7.24,204.6,204.51,7.23080021]
[1756543551637,7.24,204.6,204.52,7.31]
[1756543556451,0.03517801,204.61,204.55,7.31]
[1756543556848,7.24,204.63,204.55,7.31]
[1756543557246,0.03338704,204.6,204.54,2.83040021]
[1756543557443,0.03338704,204.6,204.55,7.31]
[1756543557746,0.03338704,204.6,204.55,4.3995]
[1756543557949,20.38911177,204.59,204.43,7.31]
[1756543558141,7.24,204.55,204.45,7.31]
[1756543558751,7.24,204.51,204.45,7.31]
[1756543559455,7.24,204.51,204.41,7.31]
[1756543559843,5.05,204.49,204.3,4.08360447]
[1756543560051,28.44688908,204.5,204.24,7.31]
[1756543560052,2.83040021,204.35,204.24,7.31]
[1756543560253,2.83040021,204.34,204.24,7.31]
[1756543560454,2.42,204.36,204.25,7.31]
[1756543560649,2.83040021,204.35,204.25,7.31]
[1756543560853,2.42,204.36,204.25,7.31]
[1756543561050,2.42,204.36,204.25,24.5]
[1756543561252,2.42,204.36,204.26,7.31]
[1756543561451,2.44856288,204.35,204.26,7.31]
[1756543561658,2.42,204.36,204.26,7.31]
[1756543562456,0.03234409,204.33,204.26,7.31]
[1756543565259,0.03234409,204.33,204.26,10.14040021]
[1756543565458,2.45234409,204.33,204.27,7.31]
[1756543565964,2.42,204.33,204.27,7.31]
[1756543566561,0.03151671,204.32,204.27,7.31]
[1756543567065,0.03151671,204.32,204.23,12.0663]
[1756543567266,0.03151671,204.32,204.23,4.4063]
[1756543567566,2.42,204.33,204.24,7.66]
[1756543568366,5.66080042,204.25,204.01,7.66]
[1756543568561,2.83040021,204.19,204.06,7.66]
[1756543568759,2.83040021,204.22,204.1,10.49040021]
[1756543568961,2.48,204.23,204.11,7.66]
[1756543569260,2.48,204.23,204.11,23.6]
[1756543569465,2.48,204.27,204.16,2.83040021]
[1756543569869,392.65,204.32,204.2,7.66]
[1756543570071,395.48040021,204.32,204.2,7.66]
[1756543570270,2.83040021,204.29,204.2,7.66]
[1756543570573,5.34040021,204.32,204.21,2.83040021]
[1756543570866,2.51,204.32,204.22,7.66]
[1756543571267,2.51,204.28,204.17,7.66]
[1756543571564,2.51,204.26,204.11,7.66]
[1756543571872,2.51,204.23,204.11,7.66]
[1756543572071,2.51,204.23,204.16,0.03659868]
[1756543573075,4.55829337,204.22,204.16,0.03659868]
[1756543573372,2.51,204.21,204.16,0.03659868]
[1756543573574,4.55829337,204.2,204.16,0.03659868]
[1756543573973,2.51,204.19,204.16,0.03659868]
[1756543574174,2.51,204.29,204.16,0.03659868]
[1756543574376,2.51,204.25,204.16,0.03659868]
[1756543574574,2.51,204.25,204.12,7.66]
[1756543574774,2.51,204.22,204.12,7.66]
[1756543574974,2.51,204.22,204.18,0.03392181]
[1756543575475,4.55829337,204.23,204.18,0.03392181]
[1756543576277,2.51,204.22,204.18,0.03392181]
[1756543576575,4.55829337,204.23,204.18,0.03392181]
[1756543576776,2.51,204.22,204.18,0.03392181]
[1756543576969,4.55829337,204.23,204.18,0.03392181]
[1756543577167,2.51,204.22,204.18,0.03392181]
[1756543577679,4.55829337,204.23,204.18,0.03392181]
[1756543577875,2.51,204.22,204.18,0.03392181]
[1756543578080,4.55829337,204.23,204.18,0.03392181]
[1756543578280,2.51,204.22,204.18,0.03392181]
[1756543578775,4.55829337,204.23,204.18,0.03392181]
[1756543578982,2.51,204.22,204.18,0.03392181]
[1756543579280,2.51,204.19,204.18,0.03392181]
[1756543579675,2.99,204.19,204.08,7.66]
[1756543579881,2.51,204.19,204.08,7.66]
[1756543581283,0.03309676,204.16,204.08,7.66]
[1756543583586,2.5,204.15,204.04,7.66]
[1756543584285,0.03250361,204.12,204.04,7.66]
[1756543585486,7.05829337,204.11,204.0,11.66]
[1756543586283,4.55829337,204.01,203.69,7.66]
[1756543586483,4.55829337,203.97,203.77,7.66]
[1756543586690,135.15829337,203.97,203.77,7.66]
[1756543586891,135.15829337,203.97,203.78,7.66]
[1756543587080,4.55829337,204.0,203.78,7.66]
[1756543587278,4.55829337,203.92,203.78,7.66]
[1756543587480,0.03123207,203.9,203.8,7.66]
[1756543587883,4.55829337,203.92,203.79,4.4159]
[1756543588188,4.55829337,203.87,203.72,7.66]
[1756543590092,0.03187521,203.82,203.72,7.66]
[1756543592891,4.59016858,203.82,203.72,7.66]
[1756543594198,0.03187521,203.82,203.72,7.66]
[1756543595099,0.03187521,203.82,203.76,4.4164]
[1756543595498,0.03187521,203.82,203.75,7.66]
[1756543596299,0.03187521,203.82,203.79,7.66]
[1756543596495,0.03187521,203.82,203.78,4.416]
[1756543596694,1.72,203.93,203.79,7.66]
[1756543596899,4.55829337,203.94,203.79,7.66]
[1756543597094,0.0327787,203.82,203.77,4.55829337]
[1756543597296,4.59829337,203.94,203.84,0.03354975]
[1756543597595,4.59829337,203.94,203.82,7.41]
[1756543597801,0.04,203.93,203.82,7.41]
[1756543598101,4.55829337,203.91,203.82,7.41]
[1756543598501,0.04,203.9,203.85,0.03326307]
[1756543598799,0.04,203.87,203.85,0.03326307]
[1756543598999,4.55829337,203.88,203.85,0.03326307]
[1756543599595,0.04,203.88,203.85,0.03326307]
[1756543600103,0.04,203.89,203.85,0.03326307]
[1756543600294,4.55829337,203.9,203.85,0.03326307]
[1756543600498,0.04,203.91,203.85,0.03326307]
[1756543600700,0.04,203.89,203.85,0.03326307]
[1756543601100,95.98,203.92,203.85,0.03326307]
[1756543601304,4.59829337,203.91,203.85,0.03326307]
[1756543604518,0.04,203.87,203.77,7.41]
[1756543604710,4.55829337,203.85,203.77,7.41]
[1756543605211,4.55829337,203.85,203.67,4.55829337]
[1756543605411,0.04,203.84,203.68,4.4181]
[1756543605612,0.04,203.84,203.69,7.41]
[1756543605812,0.0343728,203.78,203.69,7.41]
[1756543606907,0.04,203.71,203.58,0.85431268]
[1756543607113,0.04,203.69,203.52,7.41]
[1756543607314,4.55829337,203.66,203.52,7.41]
[1756543607615,0.03233662,203.63,203.52,7.41]
[1756543608212,0.03233662,203.63,203.55,4.55829337]
[1756543608412,4.55829337,203.72,203.58,7.41]
[1756543608907,329.7,203.74,203.58,7.41]
[1756543609118,0.04,203.74,203.59,4.4202]
[1756543609419,0.04,203.74,203.58,7.41]
[1756543609614,4.55829337,203.73,203.58,7.41]
[1756543609812,4.55829337,203.73,203.64,0.03334001]
[1756543610209,0.04,203.74,203.64,0.03334001]
[1756543611317,4.55829337,203.77,203.65,7.41]
[1756543611713,0.07,203.79,203.65,7.41]
[1756543612116,0.07,203.79,203.69,0.03273862]
[1756543613517,4.55829337,203.75,203.69,0.03273862]
[1756543616724,0.07,203.77,203.69,0.03273862]
[1756543618717,0.07,203.77,203.69,7.44273862]
[1756543620815,329.72,203.86,203.69,7.44273862]
[1756543620816,81.90829337,203.85,203.69,7.44273862]
[1756543621216,4.62829337,203.85,203.7,4.55829337]
[1756543621421,4.62829337,203.85,203.71,7.41]
[1756543621719,4.62829337,203.85,203.75,7.4426132]
[1756543622022,329.72,203.86,203.75,7.4426132]
[1756543622720,0.07,203.9,203.76,4.55829337]
[1756543623020,0.07,203.9,203.77,7.41]
[1756543623218,0.07,203.9,203.78,7.41]
[1756543623622,4.55829337,203.93,203.78,7.41]
[1756543623820,4.55829337,203.93,203.83,7.41]
[1756543624526,0.07,203.94,203.83,7.41]
[1756543625219,0.07,204.0,203.83,7.41]
[1756543625418,6.97671074,203.99,203.83,7.41]
[1756543625719,4.55829337,203.99,203.87,7.41]
[1756543625925,2.41854685,203.98,203.87,7.41]
[1756543626123,2.41886118,203.97,203.87,7.41]
[1756543626323,2.41886118,203.96,203.87,7.41]
[1756543626518,4.55829337,203.99,203.9,0.03493774]
[1756543626719,2.42157354,203.98,203.9,0.03493774]
[1756543627029,2.42157354,203.97,203.9,0.03493774]
[1756543627322,2.42486808,203.96,203.9,0.03493774]
[1756543627521,0.07,204.06,203.91,7.22]
[1756543627728,0.07,204.03,203.91,7.22]
[1756543627920,2.42571664,204.02,203.91,7.22]
[1756543628126,2.42571664,204.01,203.93,4.55829337]
[1756543628322,135.56829337,204.07,203.95,7.25181094]
[1756543628522,2.42917394,204.06,203.95,7.25181094]
[1756543628824,2.42917394,204.05,203.95,7.25181094]
[1756543629026,2.42917394,204.04,203.95,7.25181094]
[1756543629224,2.42917394,204.03,203.95,7.25181094]
[1756543629424,2.42917394,204.02,203.95,7.25181094]
[1756543629625,2.42917394,204.01,203.95,7.25181094]
[1756543629928,131.01,204.07,203.95,7.25181094]
[1756543629929,2.50112215,204.0,203.95,0.03181094]
[1756543630233,2.43112215,203.99,203.95,0.03181094]
[1756543630430,2.43112215,203.98,203.95,0.03181094]
[1756543630630,0.07,204.0,203.95,0.03181094]
[1756543630829,2.43330518,203.99,203.95,0.03181094]
[1756543631028,2.43330518,203.98,203.95,0.03181094]
[1756543631231,2.43330518,203.97,203.95,0.03181094]
[1756543631531,0.07,204.0,203.95,0.03181094]
[1756543631728,2.435648,203.99,203.95,0.03181094]
[1756543631930,2.435648,203.98,203.95,0.03181094]
[1756543632232,0.07,204.0,203.95,0.03181094]
[1756543632531,2.43501208,203.99,203.95,0.03181094]
[1756543632731,2.43501208,203.98,203.95,0.03181094]
[1756543633036,0.07,204.0,203.95,0.03181094]
[1756543633232,2.43367398,203.99,203.95,0.03181094]
[1756543633432,2.43367398,203.98,203.95,7.25181094]
[1756543633635,0.07,204.0,203.95,0.03181094]
[1756543633832,0.07,203.96,203.95,0.03181094]
[1756543634336,2.50308455,203.96,203.95,0.03181094]
[1756543635732,2.50308455,203.96,203.84,7.22]
[1756543635938,2.43308455,203.95,203.84,7.22]
[1756543636137,2.43308455,203.94,203.84,7.22]
[1756543636338,2.43308455,203.93,203.84,7.22]
[1756543636636,2.43308455,203.92,203.84,7.22]
[1756543636837,4.55829337,203.95,203.84,7.22]
[1756543637034,0.03339893,203.91,203.84,7.22]
[1756543641041,0.03339893,203.91,203.78,7.22]
[1756543641342,4.63829337,203.89,203.78,7.22]
[1756543641737,0.03765385,203.86,203.78,7.22]
[1756543645840,0.12,203.98,203.8,4.55829337]
[1756543646035,2.43182228,203.97,203.81,7.22]
[1756543646234,4.67829337,203.98,203.81,7.22]
[1756543646440,4.67829337,203.98,203.85,7.22]